[Event "Early-Titled-Tuesday-Blitz-February-06-2024"]
[Site "Chess.com"]
[Date "2024.02.06"]
[Round "11"]
[White "adotand"]
[Black "Denis_Makhnyov"]
[Result "1/2-1/2"]
[WhiteElo "2911"]
[BlackElo "3022"]
[TimeControl "180+1"]
[EndTime "10:07:13 PST"]
[Termination "Game drawn by repetition"]

1. d4 {[%clk 0:03:00.9]} 1... d5 {[%clk 0:02:59.8]} 2. c4 {[%clk 0:03:00.9]}
2... e6 {[%clk 0:03:00.4]} 3. Nf3 {[%clk 0:03:00.5]} 3... c6 {[%clk 0:03:00.6]}
4. e3 {[%clk 0:02:58.9]} 4... Nf6 {[%clk 0:02:59.6]} 5. Nc3 {[%clk 0:02:57.2]}
5... Nbd7 {[%clk 0:02:58.8]} 6. Bd3 {[%clk 0:02:57.6]} 6... dxc4 {[%clk
0:02:58.4]} 7. Bxc4 {[%clk 0:02:58.5]} 7... b5 {[%clk 0:02:59.1]} 8. Bd3 {[%clk
0:02:59.2]} 8... b4 {[%clk 0:02:59]} 9. Ne4 {[%clk 0:02:58.5]} 9... Nxe4 {[%clk
0:02:59.3]} 10. Bxe4 {[%clk 0:02:58.9]} 10... Bb7 {[%clk 0:03:00.1]} 11. O-O
{[%clk 0:02:58.2]} 11... Be7 {[%clk 0:03:00.1]} 12. a3 {[%clk 0:02:57.3]} 12...
a5 {[%clk 0:02:57.6]} 13. Qc2 {[%clk 0:02:55.9]} 13... h6 {[%clk 0:02:52.6]} 14.
Bd2 {[%clk 0:02:41.9]} 14... O-O {[%clk 0:02:51.2]} 15. Rfc1 {[%clk 0:02:35.8]}
15... Qb6 {[%clk 0:02:46.5]} 16. axb4 {[%clk 0:02:12]} 16... axb4 {[%clk
0:02:47.4]} 17. Qb3 {[%clk 0:02:10.9]} 17... Rxa1 {[%clk 0:02:29.3]} 18. Rxa1
{[%clk 0:02:11.8]} 18... Nf6 {[%clk 0:02:29.9]} 19. Bd3 {[%clk 0:02:11.9]} 19...
c5 {[%clk 0:02:30]} 20. dxc5 {[%clk 0:02:11.1]} 20... Bxc5 {[%clk 0:02:29.6]}
21. Be2 {[%clk 0:02:08.1]} 21... Bd5 {[%clk 0:02:18.5]} 22. Qd1 {[%clk
0:02:08.1]} 22... Rd8 {[%clk 0:02:17.6]} 23. Qc1 {[%clk 0:02:01.2]} 23... Ne4
{[%clk 0:02:06.3]} 24. Be1 {[%clk 0:02:01.5]} 24... Be7 {[%clk 0:02:06.6]} 25.
Ne5 {[%clk 0:01:57.4]} 25... Nc5 {[%clk 0:02:00.4]} 26. Bc4 {[%clk 0:01:34.7]}
26... Bf6 {[%clk 0:01:54.3]} 27. Bxd5 {[%clk 0:01:33.9]} 27... exd5 {[%clk
0:01:53.3]} 28. Bxb4 {[%clk 0:01:16.9]} 28... Nb3 {[%clk 0:01:51.6]} 29. Qe1
{[%clk 0:00:54.3]} 29... Nxa1 {[%clk 0:01:35.3]} 30. Ba5 {[%clk 0:00:54.8]}
30... Qxb2 {[%clk 0:01:32]} 31. Nd3 {[%clk 0:00:50.5]} 31... Nc2 {[%clk
0:01:27.2]} 32. Qd1 {[%clk 0:00:30.3]} 32... Qb3 {[%clk 0:01:07.3]} 33. Bxd8
{[%clk 0:00:26.7]} 33... Bxd8 {[%clk 0:01:08.2]} 34. Ne1 {[%clk 0:00:24.1]}
34... Nd4 {[%clk 0:00:23.2]} 35. Qxd4 {[%clk 0:00:24.2]} 35... Ba5 {[%clk
0:00:23.9]} 36. Qd3 {[%clk 0:00:21.7]} 36... Qc4 {[%clk 0:00:04.9]} 37. Qd1
{[%clk 0:00:18.4]} 37... Bxe1 {[%clk 0:00:04]} 38. Qxe1 {[%clk 0:00:19.3]} 38...
d4 {[%clk 0:00:04.9]} 39. exd4 {[%clk 0:00:18.8]} 39... Qxd4 {[%clk 0:00:03.4]}
40. g3 {[%clk 0:00:19]} 40... Qd5 {[%clk 0:00:03.4]} 41. Qe2 {[%clk 0:00:17.9]}
41... g6 {[%clk 0:00:03.2]} 42. Qe3 {[%clk 0:00:17.9]} 42... h5 {[%clk
0:00:03.6]} 43. h4 {[%clk 0:00:18.4]} 43... Kg7 {[%clk 0:00:02.7]} 44. Qf4
{[%clk 0:00:17.8]} 44... Kg8 {[%clk 0:00:03.1]} 45. Qe3 {[%clk 0:00:17.7]} 45...
Kg7 {[%clk 0:00:03.6]} 46. Qf4 {[%clk 0:00:17.6]} 46... Kg8 {[%clk 0:00:04.1]}
47. Qh6 {[%clk 0:00:17]} 47... Qd1+ {[%clk 0:00:03.3]} 48. Kg2 {[%clk
0:00:17.1]} 48... Qe2 {[%clk 0:00:03.7]} 49. Qf4 {[%clk 0:00:16.5]} 49... Kg7
{[%clk 0:00:04.2]} 50. Qd4+ {[%clk 0:00:16.7]} 50... Kg8 {[%clk 0:00:04.5]} 51.
Qf4 {[%clk 0:00:16.8]} 51... Kg7 {[%clk 0:00:05]} 52. Qd4+ {[%clk 0:00:13.8]}
52... Kg8 {[%clk 0:00:05.4]} 53. Qf4 {[%clk 0:00:14.5]} 1/2-1/2

[Event "Early-Titled-Tuesday-Blitz-February-06-2024"]
[Site "Chess.com"]
[Date "2024.02.06"]
[Round "11"]
[White "blitzking1729"]
[Black "Elsa167"]
[Result "0-1"]
[WhiteElo "2755"]
[BlackElo "2884"]
[TimeControl "180+1"]
[EndTime "10:07:13 PST"]
[Termination "Elsa167 won on time"]

1. d4 {[%clk 0:03:00.9]} 1... e6 {[%clk 0:02:58.6]} 2. Nf3 {[%clk 0:03:00.8]}
2... Nf6 {[%clk 0:02:57.5]} 3. Bg5 {[%clk 0:03:00.6]} 3... c5 {[%clk 0:02:57.3]}
4. e3 {[%clk 0:02:56.2]} 4... cxd4 {[%clk 0:02:57.7]} 5. exd4 {[%clk 0:02:56.5]}
5... Be7 {[%clk 0:02:57.6]} 6. Nbd2 {[%clk 0:02:56.2]} 6... b6 {[%clk
0:02:58.1]} 7. c3 {[%clk 0:02:56]} 7... Bb7 {[%clk 0:02:58.5]} 8. a4 {[%clk
0:02:55.2]} 8... a6 {[%clk 0:02:58.6]} 9. Bd3 {[%clk 0:02:54.9]} 9... d6 {[%clk
0:02:59]} 10. O-O {[%clk 0:02:55.5]} 10... Nbd7 {[%clk 0:02:59.3]} 11. Re1
{[%clk 0:02:55.8]} 11... O-O {[%clk 0:02:59.7]} 12. Bh4 {[%clk 0:02:48.8]} 12...
Re8 {[%clk 0:02:58.8]} 13. Nc4 {[%clk 0:02:44.3]} 13... Qc7 {[%clk 0:02:58.7]}
14. Bg3 {[%clk 0:02:41.3]} 14... Bf8 {[%clk 0:02:58.7]} 15. Nfd2 {[%clk
0:02:31.1]} 15... g6 {[%clk 0:02:55.5]} 16. f3 {[%clk 0:02:27.2]} 16... Nh5
{[%clk 0:02:30.5]} 17. Bf2 {[%clk 0:02:26.5]} 17... e5 {[%clk 0:02:30.9]} 18.
Bf1 {[%clk 0:02:15.7]} 18... Nf4 {[%clk 0:02:20.6]} 19. Qb3 {[%clk 0:02:13.8]}
19... Bd5 {[%clk 0:02:12.8]} 20. Qc2 {[%clk 0:02:07.9]} 20... Bg7 {[%clk
0:01:56.6]} 21. dxe5 {[%clk 0:02:02.9]} 21... dxe5 {[%clk 0:01:54.6]} 22. Ne3
{[%clk 0:01:59]} 22... Bb7 {[%clk 0:01:54.2]} 23. Ndc4 {[%clk 0:01:56.9]} 23...
e4 {[%clk 0:01:43.8]} 24. fxe4 {[%clk 0:01:54.5]} 24... Bxe4 {[%clk 0:01:44.1]}
25. Qd1 {[%clk 0:01:48.6]} 25... Rad8 {[%clk 0:01:36.2]} 26. Nd6 {[%clk
0:01:41.8]} 26... Be5 {[%clk 0:01:32.1]} 27. Nxe4 {[%clk 0:01:36.2]} 27... Nc5
{[%clk 0:01:18.3]} 28. Qf3 {[%clk 0:00:36]} 28... Nxe4 {[%clk 0:01:16.9]} 29.
Ng4 {[%clk 0:00:27.5]} 29... Ng5 {[%clk 0:00:35.3]} 30. Qe3 {[%clk 0:00:20.6]}
30... Nfh3+ {[%clk 0:00:34.6]} 31. gxh3 {[%clk 0:00:20.1]} 31... Bxh2+ {[%clk
0:00:34.8]} 32. Nxh2 {[%clk 0:00:20.5]} 32... Rxe3 {[%clk 0:00:34.9]} 33. Rxe3
{[%clk 0:00:21]} 33... f5 {[%clk 0:00:29.6]} 34. Rae1 {[%clk 0:00:19.8]} 34...
Ne4 {[%clk 0:00:29.9]} 35. R3e2 {[%clk 0:00:12.8]} 35... Nxf2 {[%clk 0:00:27.6]}
36. Rxf2 {[%clk 0:00:13.3]} 36... Qg3+ {[%clk 0:00:26.7]} 37. Bg2 {[%clk
0:00:13.8]} 37... Rd2 {[%clk 0:00:21.5]} 38. Rxd2 {[%clk 0:00:13.8]} 38... Qxe1+
{[%clk 0:00:21]} 39. Nf1 {[%clk 0:00:14.7]} 39... h5 {[%clk 0:00:18.5]} 40. Rd6
{[%clk 0:00:12.4]} 40... Kh7 {[%clk 0:00:18.6]} 41. Rxb6 {[%clk 0:00:10.9]}
41... g5 {[%clk 0:00:18.8]} 42. Rxa6 {[%clk 0:00:07.3]} 42... g4 {[%clk
0:00:19]} 43. hxg4 {[%clk 0:00:05.9]} 43... hxg4 {[%clk 0:00:19.6]} 44. Rf6
{[%clk 0:00:06.3]} 44... Qe5 {[%clk 0:00:18]} 45. Rc6 {[%clk 0:00:04.7]} 45...
f4 {[%clk 0:00:17.6]} 46. Rc4 {[%clk 0:00:05]} 46... Kh6 {[%clk 0:00:10.1]} 47.
a5 {[%clk 0:00:04.7]} 47... Kg5 {[%clk 0:00:10.5]} 48. a6 {[%clk 0:00:05.2]}
48... f3 {[%clk 0:00:09.5]} 49. Bxf3 {[%clk 0:00:04.2]} 49... gxf3 {[%clk
0:00:09.6]} 50. a7 {[%clk 0:00:03.8]} 50... Qe2 {[%clk 0:00:05.2]} 0-1

[Event "Early-Titled-Tuesday-Blitz-February-06-2024"]
[Site "Chess.com"]
[Date "2024.02.06"]
[Round "11"]
[White "Nikolakis2014"]
[Black "Yan_Dyomin2010"]
[Result "0-1"]
[WhiteElo "2719"]
[BlackElo "2606"]
[TimeControl "180+1"]
[EndTime "10:07:13 PST"]
[Termination "Yan_Dyomin2010 won on time"]

1. Nf3 {[%clk 0:03:00.9]} 1... Nf6 {[%clk 0:02:46.1]} 2. c4 {[%clk 0:03:00.4]}
2... g6 {[%clk 0:02:45.7]} 3. b3 {[%clk 0:02:59.9]} 3... Bg7 {[%clk 0:02:45.4]}
4. Bb2 {[%clk 0:03:00.3]} 4... O-O {[%clk 0:02:46]} 5. h4 {[%clk 0:03:00.4]}
5... d6 {[%clk 0:02:39.1]} 6. d4 {[%clk 0:02:56.5]} 6... Bg4 {[%clk 0:02:35.4]}
7. Nc3 {[%clk 0:02:56.4]} 7... Nbd7 {[%clk 0:02:31.7]} 8. e3 {[%clk 0:02:56]}
8... e5 {[%clk 0:02:31.1]} 9. Be2 {[%clk 0:02:56.2]} 9... Re8 {[%clk 0:02:28.5]}
10. d5 {[%clk 0:02:52.5]} 10... e4 {[%clk 0:02:26.6]} 11. Nd4 {[%clk 0:02:50.8]}
11... Bxe2 {[%clk 0:02:26.3]} 12. Qxe2 {[%clk 0:02:50.6]} 12... Ne5 {[%clk
0:02:26.8]} 13. O-O-O {[%clk 0:02:48.7]} 13... Nd3+ {[%clk 0:02:20.1]} 14. Rxd3
{[%clk 0:02:48.7]} 14... exd3 {[%clk 0:02:19.7]} 15. Qxd3 {[%clk 0:02:48.9]}
15... Qd7 {[%clk 0:02:10.1]} 16. f3 {[%clk 0:02:44.7]} 16... c5 {[%clk
0:02:06.9]} 17. Nc2 {[%clk 0:02:42.1]} 17... a6 {[%clk 0:02:04.7]} 18. g4 {[%clk
0:02:40.6]} 18... b5 {[%clk 0:02:03.4]} 19. h5 {[%clk 0:02:35.7]} 19... bxc4
{[%clk 0:01:58.4]} 20. Qxc4 {[%clk 0:02:35.7]} 20... a5 {[%clk 0:01:55.3]} 21.
hxg6 {[%clk 0:02:23.2]} 21... fxg6 {[%clk 0:01:54.1]} 22. g5 {[%clk 0:02:23.4]}
22... Nh5 {[%clk 0:01:53.5]} 23. Ne4 {[%clk 0:02:21.1]} 23... Bxb2+ {[%clk
0:01:52]} 24. Kxb2 {[%clk 0:02:20.7]} 24... Qg7+ {[%clk 0:01:43.4]} 25. Kc1
{[%clk 0:02:00.8]} 25... Qf8 {[%clk 0:01:18.7]} 26. Rxh5 {[%clk 0:01:42.1]}
26... gxh5 {[%clk 0:01:05.6]} 27. Nf6+ {[%clk 0:01:42.1]} 27... Kh8 {[%clk
0:01:06.2]} 28. e4 {[%clk 0:01:42.4]} 28... Qg7 {[%clk 0:00:55.3]} 29. f4 {[%clk
0:01:39.3]} 29... h6 {[%clk 0:00:55.7]} 30. Qe2 {[%clk 0:01:33.8]} 30... Qg6
{[%clk 0:00:52.1]} 31. e5 {[%clk 0:00:39.7]} 31... dxe5 {[%clk 0:00:44]} 32. d6
{[%clk 0:00:33.3]} 32... exf4 {[%clk 0:00:40.4]} 33. Qd2 {[%clk 0:00:18.4]}
33... hxg5 {[%clk 0:00:29.8]} 34. Nxe8 {[%clk 0:00:15.1]} 34... Rxe8 {[%clk
0:00:29.3]} 35. Qd5 {[%clk 0:00:15.3]} 35... Re2 {[%clk 0:00:19.6]} 36. Qxc5
{[%clk 0:00:13.8]} 36... Rxc2+ {[%clk 0:00:11.3]} 37. Qxc2 {[%clk 0:00:12.9]}
37... Qxd6 {[%clk 0:00:11.9]} 38. Qf5 {[%clk 0:00:12.6]} 38... Qc6+ {[%clk
0:00:08]} 39. Kb2 {[%clk 0:00:12.1]} 39... Qg2+ {[%clk 0:00:08.1]} 40. Ka3
{[%clk 0:00:12.3]} 40... Kg7 {[%clk 0:00:08.1]} 41. Qe5+ {[%clk 0:00:12.2]}
41... Kf7 {[%clk 0:00:08.7]} 42. Qf5+ {[%clk 0:00:12.4]} 42... Ke7 {[%clk
0:00:09.3]} 43. Qe5+ {[%clk 0:00:12.8]} 43... Kd7 {[%clk 0:00:10]} 44. Qf5+
{[%clk 0:00:12.7]} 44... Kd6 {[%clk 0:00:10]} 45. Qf6+ {[%clk 0:00:12.1]} 45...
Kd5 {[%clk 0:00:09.7]} 46. Qf5+ {[%clk 0:00:11.5]} 46... Kd4 {[%clk 0:00:09.7]}
47. Qxa5 {[%clk 0:00:11.5]} 47... Qd5 {[%clk 0:00:08.5]} 48. Qd2+ {[%clk
0:00:10.4]} 48... Ke5 {[%clk 0:00:08.5]} 49. Qc3+ {[%clk 0:00:10.1]} 49... Kf5
{[%clk 0:00:08.8]} 50. Qg7 {[%clk 0:00:08.5]} 50... f3 {[%clk 0:00:08.3]} 51. b4
{[%clk 0:00:06.8]} 51... Kg4 {[%clk 0:00:07.3]} 52. Qf6 {[%clk 0:00:04.6]} 52...
Kg3 {[%clk 0:00:07.5]} 53. Ka4 {[%clk 0:00:02.6]} 53... f2 {[%clk 0:00:07.9]}
0-1

[Event "Early-Titled-Tuesday-Blitz-February-06-2024"]
[Site "Chess.com"]
[Date "2024.02.06"]
[Round "11"]
[White "Chessdreamer2020"]
[Black "M1711"]
[Result "1/2-1/2"]
[WhiteElo "2547"]
[BlackElo "2656"]
[TimeControl "180+1"]
[EndTime "10:07:13 PST"]
[Termination "Game drawn - insufficient material"]

1. e4 {[%clk 0:03:00]} 1... h5 {[%clk 0:03:00.2]} 2. d4 {[%clk 0:02:59.6]} 2...
a5 {[%clk 0:03:00.6]} 3. Nf3 {[%clk 0:02:59.8]} 3... h4 {[%clk 0:03:01.1]} 4.
Bd3 {[%clk 0:02:58.7]} 4... h3 {[%clk 0:03:01.1]} 5. g3 {[%clk 0:02:59]} 5... a4
{[%clk 0:03:01.5]} 6. O-O {[%clk 0:02:58.6]} 6... a3 {[%clk 0:03:01.9]} 7. Nxa3
{[%clk 0:02:58.3]} 7... e5 {[%clk 0:03:01.8]} 8. Nxe5 {[%clk 0:02:57.6]} 8...
Nc6 {[%clk 0:03:00]} 9. Nxc6 {[%clk 0:02:53.3]} 9... dxc6 {[%clk 0:03:00.2]} 10.
c3 {[%clk 0:02:50.1]} 10... Nf6 {[%clk 0:02:58.8]} 11. Nc4 {[%clk 0:02:49.4]}
11... Bg4 {[%clk 0:02:57.3]} 12. f3 {[%clk 0:02:48.8]} 12... Be6 {[%clk
0:02:57.5]} 13. Bg5 {[%clk 0:02:43.7]} 13... Be7 {[%clk 0:02:56]} 14. Ne5 {[%clk
0:02:39.7]} 14... Nd7 {[%clk 0:02:44.9]} 15. Bxe7 {[%clk 0:02:38.7]} 15... Qxe7
{[%clk 0:02:45.8]} 16. Nxd7 {[%clk 0:02:32.9]} 16... Qxd7 {[%clk 0:02:46.1]} 17.
a3 {[%clk 0:02:33.1]} 17... f6 {[%clk 0:02:43.7]} 18. Qe2 {[%clk 0:02:29.6]}
18... O-O-O {[%clk 0:02:39.4]} 19. a4 {[%clk 0:02:28.8]} 19... Rhe8 {[%clk
0:02:37.5]} 20. a5 {[%clk 0:02:28.2]} 20... Kb8 {[%clk 0:02:36.4]} 21. a6 {[%clk
0:02:28.2]} 21... b6 {[%clk 0:02:35.2]} 22. a7+ {[%clk 0:02:27.9]} 22... Ka8
{[%clk 0:02:35]} 23. b4 {[%clk 0:02:22.8]} 23... c5 {[%clk 0:02:23.7]} 24. bxc5
{[%clk 0:02:21.8]} 24... bxc5 {[%clk 0:02:21.4]} 25. Rfd1 {[%clk 0:01:59.2]}
25... cxd4 {[%clk 0:02:19.6]} 26. Bb5 {[%clk 0:01:59.4]} 26... c6 {[%clk
0:02:17.3]} 27. Rxd4 {[%clk 0:01:59]} 27... Qc7 {[%clk 0:02:17]} 28. Bc4 {[%clk
0:01:53.7]} 28... Qb6 {[%clk 0:02:08.2]} 29. Rd1 {[%clk 0:01:32.2]} 29... Rxd4
{[%clk 0:02:01.6]} 30. cxd4 {[%clk 0:01:29.6]} 30... Bc8 {[%clk 0:01:35.5]} 31.
Kh1 {[%clk 0:01:24.6]} 31... Rd8 {[%clk 0:01:31.8]} 32. d5 {[%clk 0:01:24]}
32... Bb7 {[%clk 0:01:18]} 33. Qf1 {[%clk 0:00:48.2]} 33... cxd5 {[%clk
0:01:13.6]} 34. Bxd5 {[%clk 0:00:47.9]} 34... Bxd5 {[%clk 0:01:11]} 35. exd5
{[%clk 0:00:48.8]} 35... Qb3 {[%clk 0:00:57]} 36. Rd3 {[%clk 0:00:48.4]} 36...
Qc4 {[%clk 0:00:53.1]} 37. Qd1 {[%clk 0:00:42.5]} 37... Rd6 {[%clk 0:00:48.9]}
38. Qb1 {[%clk 0:00:31.6]} 38... Rd8 {[%clk 0:00:46.2]} 39. d6 {[%clk
0:00:29.3]} 39... Qc6 {[%clk 0:00:40.6]} 40. d7 {[%clk 0:00:27.1]} 40... Qc7
{[%clk 0:00:30.8]} 41. Rd2 {[%clk 0:00:11.9]} 41... Qb7 {[%clk 0:00:20.1]} 42.
Qe4 {[%clk 0:00:08.6]} 42... Qxe4 {[%clk 0:00:15.9]} 43. fxe4 {[%clk 0:00:09.5]}
43... Kxa7 {[%clk 0:00:16.6]} 44. Kg1 {[%clk 0:00:09.9]} 44... Kb7 {[%clk
0:00:14.7]} 45. Kf2 {[%clk 0:00:10.5]} 45... Kc7 {[%clk 0:00:15.1]} 46. Kf3
{[%clk 0:00:11.1]} 46... Rxd7 {[%clk 0:00:14.3]} 47. Rxd7+ {[%clk 0:00:10.9]}
47... Kxd7 {[%clk 0:00:15.2]} 48. Kg4 {[%clk 0:00:11.2]} 48... Ke6 {[%clk
0:00:15.5]} 49. Kxh3 {[%clk 0:00:09.5]} 49... Ke5 {[%clk 0:00:16]} 50. Kg4
{[%clk 0:00:09.7]} 50... Kxe4 {[%clk 0:00:16.6]} 51. Kh5 {[%clk 0:00:09.3]}
51... Kf3 {[%clk 0:00:12.3]} 52. Kg6 {[%clk 0:00:09.3]} 52... Kg2 {[%clk
0:00:12.1]} 53. Kxg7 {[%clk 0:00:07.1]} 53... Kxh2 {[%clk 0:00:11.8]} 54. Kxf6
{[%clk 0:00:07.5]} 54... Kxg3 {[%clk 0:00:11.9]} 1/2-1/2

[Event "Early-Titled-Tuesday-Blitz-February-06-2024"]
[Site "Chess.com"]
[Date "2024.02.06"]
[Round "11"]
[White "AryanTari"]
[Black "Philippians46"]
[Result "0-1"]
[WhiteElo "2926"]
[BlackElo "2654"]
[TimeControl "180+1"]
[EndTime "10:07:15 PST"]
[Termination "Philippians46 won by resignation"]

1. e4 {[%clk 0:03:00.9]} 1... c5 {[%clk 0:03:00.1]} 2. Nf3 {[%clk 0:03:00.2]}
2... d6 {[%clk 0:03:00.6]} 3. Bb5+ {[%clk 0:03:00.1]} 3... Nd7 {[%clk
0:03:00.6]} 4. O-O {[%clk 0:02:53]} 4... a6 {[%clk 0:03:00]} 5. Bd3 {[%clk
0:02:53.1]} 5... Ngf6 {[%clk 0:02:59.5]} 6. Re1 {[%clk 0:02:52.8]} 6... g6
{[%clk 0:02:58]} 7. c3 {[%clk 0:02:51]} 7... Bg7 {[%clk 0:02:58.2]} 8. Bc2
{[%clk 0:02:48.8]} 8... e5 {[%clk 0:02:58.5]} 9. d4 {[%clk 0:02:48.3]} 9... O-O
{[%clk 0:02:57]} 10. dxe5 {[%clk 0:02:32.4]} 10... Nxe5 {[%clk 0:02:57.9]} 11.
Nxe5 {[%clk 0:02:28.9]} 11... dxe5 {[%clk 0:02:58.8]} 12. c4 {[%clk 0:02:29.5]}
12... Be6 {[%clk 0:02:56.3]} 13. b3 {[%clk 0:02:26.1]} 13... Qd4 {[%clk
0:02:56]} 14. Qxd4 {[%clk 0:02:12.8]} 14... cxd4 {[%clk 0:02:56.9]} 15. Bd3
{[%clk 0:02:08.4]} 15... Nd7 {[%clk 0:02:55.9]} 16. Ba3 {[%clk 0:02:03.1]} 16...
Rfc8 {[%clk 0:02:55.4]} 17. Nd2 {[%clk 0:02:03.9]} 17... Bf8 {[%clk 0:02:53.7]}
18. Bxf8 {[%clk 0:02:03.1]} 18... Kxf8 {[%clk 0:02:54.6]} 19. b4 {[%clk
0:02:01.1]} 19... Nb6 {[%clk 0:02:53.4]} 20. Rec1 {[%clk 0:01:57.8]} 20... Na4
{[%clk 0:02:53.2]} 21. c5 {[%clk 0:01:42.7]} 21... a5 {[%clk 0:02:45.1]} 22. a3
{[%clk 0:01:37.8]} 22... Nc3 {[%clk 0:02:44]} 23. f3 {[%clk 0:01:20.9]} 23...
Ke7 {[%clk 0:02:37.2]} 24. Kf2 {[%clk 0:01:21]} 24... f5 {[%clk 0:02:37]} 25.
exf5 {[%clk 0:01:07.2]} 25... gxf5 {[%clk 0:02:37.9]} 26. Re1 {[%clk 0:01:07.3]}
26... Kf6 {[%clk 0:02:36.2]} 27. Bc4 {[%clk 0:01:03.6]} 27... Bxc4 {[%clk
0:01:19.9]} 28. Nxc4 {[%clk 0:01:03.4]} 28... e4 {[%clk 0:01:20.8]} 29. fxe4
{[%clk 0:00:46.2]} 29... fxe4 {[%clk 0:01:21.7]} 30. Nd6 {[%clk 0:00:46.3]}
30... Rf8 {[%clk 0:01:06]} 31. Kg3 {[%clk 0:00:30.2]} 31... e3 {[%clk
0:01:00.2]} 32. Rac1 {[%clk 0:00:24.9]} 32... axb4 {[%clk 0:00:53.2]} 33. axb4
{[%clk 0:00:25.8]} 33... Ra3 {[%clk 0:00:27.6]} 34. Kg4 {[%clk 0:00:17.4]} 34...
Ke6 {[%clk 0:00:24.6]} 35. Nc4 {[%clk 0:00:14.6]} 35... Rg8+ {[%clk 0:00:18.6]}
36. Kh5 {[%clk 0:00:13.2]} 36... Ra2 {[%clk 0:00:04.1]} 37. Nxe3 {[%clk
0:00:12.3]} 37... Kd7 {[%clk 0:00:04.7]} 38. Ng4 {[%clk 0:00:09.7]} 38... Kc6
{[%clk 0:00:04]} 39. Ne5+ {[%clk 0:00:08.3]} 39... Kd5 {[%clk 0:00:04]} 40. Nd7
{[%clk 0:00:08.9]} 40... Rgxg2 {[%clk 0:00:03.6]} 41. Nf6+ {[%clk 0:00:08.2]}
41... Kc4 {[%clk 0:00:03.6]} 42. Ne4 {[%clk 0:00:08.7]} 42... Rxh2+ {[%clk
0:00:03.9]} 43. Kg5 {[%clk 0:00:09.4]} 43... Rag2+ {[%clk 0:00:04.4]} 44. Kf6
{[%clk 0:00:10]} 44... Kd3 {[%clk 0:00:04.5]} 45. Nxc3 {[%clk 0:00:09.6]} 45...
dxc3 {[%clk 0:00:05.4]} 46. b5 {[%clk 0:00:10.1]} 46... Re2 {[%clk 0:00:03.9]}
47. Rg1 {[%clk 0:00:04.5]} 47... Rhf2+ {[%clk 0:00:03.7]} 48. Kg7 {[%clk
0:00:04.9]} 48... Re7+ {[%clk 0:00:04.2]} 49. Kh6 {[%clk 0:00:04.7]} 49... Rf6+
{[%clk 0:00:04]} 50. Kh5 {[%clk 0:00:05.3]} 50... Re5+ {[%clk 0:00:04.4]} 51.
Rg5 {[%clk 0:00:05]} 51... Rff5 {[%clk 0:00:04.7]} 52. Rxf5 {[%clk 0:00:01.8]}
52... Rxf5+ {[%clk 0:00:05.6]} 53. Kh6 {[%clk 0:00:02.4]} 53... Rxc5 {[%clk
0:00:06.5]} 54. b6 {[%clk 0:00:02.1]} 54... c2 {[%clk 0:00:07]} 55. Kxh7 {[%clk
0:00:01.8]} 55... Kd2 {[%clk 0:00:07.4]} 56. Rg1 {[%clk 0:00:02]} 56... c1=Q
{[%clk 0:00:08.3]} 57. Rg2+ {[%clk 0:00:02.9]} 57... Kc3 {[%clk 0:00:08.6]} 58.
Rg6 {[%clk 0:00:03.3]} 58... Qh1+ {[%clk 0:00:08.5]} 0-1

[Event "Early-Titled-Tuesday-Blitz-February-06-2024"]
[Site "Chess.com"]
[Date "2024.02.06"]
[Round "11"]
[White "vi_pranav"]
[Black "lilleper1"]
[Result "0-1"]
[WhiteElo "3046"]
[BlackElo "2942"]
[TimeControl "180+1"]
[EndTime "10:07:17 PST"]
[Termination "lilleper1 won on time"]

1. e4 {[%clk 0:03:00.9]} 1... c5 {[%clk 0:03:00.2]} 2. Nf3 {[%clk 0:03:00.7]}
2... d6 {[%clk 0:03:00.7]} 3. d4 {[%clk 0:02:59.7]} 3... cxd4 {[%clk 0:03:01.6]}
4. Nxd4 {[%clk 0:03:00.6]} 4... Nf6 {[%clk 0:03:02.2]} 5. Nc3 {[%clk 0:03:01.4]}
5... a6 {[%clk 0:03:02.6]} 6. Bc4 {[%clk 0:02:59.2]} 6... e6 {[%clk 0:03:01.9]}
7. a4 {[%clk 0:02:59.4]} 7... b6 {[%clk 0:03:01.2]} 8. O-O {[%clk 0:02:59.1]}
8... Bb7 {[%clk 0:03:01.5]} 9. Re1 {[%clk 0:02:59.5]} 9... Nbd7 {[%clk
0:03:01.1]} 10. f4 {[%clk 0:02:52]} 10... Rc8 {[%clk 0:02:56.7]} 11. Bd3 {[%clk
0:02:52.1]} 11... Be7 {[%clk 0:02:49.8]} 12. Be3 {[%clk 0:02:50.5]} 12... Nc5
{[%clk 0:02:43.7]} 13. Bf2 {[%clk 0:02:48.5]} 13... O-O {[%clk 0:02:39.3]} 14.
Qf3 {[%clk 0:02:27.1]} 14... Nxd3 {[%clk 0:02:34.6]} 15. cxd3 {[%clk 0:02:26.3]}
15... Re8 {[%clk 0:02:29.9]} 16. Qh3 {[%clk 0:02:22.6]} 16... Bf8 {[%clk
0:02:26.2]} 17. Bh4 {[%clk 0:02:07.2]} 17... Be7 {[%clk 0:02:21.4]} 18. Bf2
{[%clk 0:02:03.3]} 18... Bf8 {[%clk 0:02:15.3]} 19. Nf3 {[%clk 0:02:02.4]} 19...
Nd7 {[%clk 0:02:08.6]} 20. Rad1 {[%clk 0:01:54.1]} 20... Nc5 {[%clk 0:01:49.1]}
21. Qh5 {[%clk 0:01:43.9]} 21... Qf6 {[%clk 0:01:38.2]} 22. Be3 {[%clk
0:01:36.2]} 22... Qg6 {[%clk 0:01:33.1]} 23. Qh3 {[%clk 0:01:33.6]} 23... f5
{[%clk 0:01:25.1]} 24. Bxc5 {[%clk 0:01:08]} 24... bxc5 {[%clk 0:01:19.5]} 25.
Nd2 {[%clk 0:00:55.4]} 25... fxe4 {[%clk 0:01:02.9]} 26. dxe4 {[%clk 0:00:54.7]}
26... d5 {[%clk 0:01:02.9]} 27. f5 {[%clk 0:00:48]} 27... exf5 {[%clk
0:01:00.5]} 28. exd5 {[%clk 0:00:47.9]} 28... c4 {[%clk 0:00:58.3]} 29. Qf3
{[%clk 0:00:44.7]} 29... Bc5+ {[%clk 0:00:53.6]} 30. Kh1 {[%clk 0:00:44.8]}
30... Rxe1+ {[%clk 0:00:23.4]} 31. Rxe1 {[%clk 0:00:45.7]} 31... Re8 {[%clk
0:00:23.6]} 32. Rf1 {[%clk 0:00:37.6]} 32... Re3 {[%clk 0:00:16.3]} 33. Qf4
{[%clk 0:00:36.4]} 33... Re8 {[%clk 0:00:10]} 34. Nxc4 {[%clk 0:00:34.4]} 34...
Bb4 {[%clk 0:00:08.7]} 35. Ne3 {[%clk 0:00:21.4]} 35... Bc5 {[%clk 0:00:07.2]}
36. Nxf5 {[%clk 0:00:19.8]} 36... Rf8 {[%clk 0:00:07.8]} 37. b4 {[%clk
0:00:09.6]} 37... Bxb4 {[%clk 0:00:04.4]} 38. Qxb4 {[%clk 0:00:05.5]} 38... Rxf5
{[%clk 0:00:04.9]} 39. Rxf5 {[%clk 0:00:06.1]} 39... Qxf5 {[%clk 0:00:05.8]} 40.
Qc4 {[%clk 0:00:04.3]} 40... Qc2 {[%clk 0:00:05.6]} 41. h3 {[%clk 0:00:03.4]}
41... Qc1+ {[%clk 0:00:05.2]} 42. Kh2 {[%clk 0:00:03.9]} 42... Qd2 {[%clk
0:00:06.1]} 43. d6+ {[%clk 0:00:04]} 43... Kf8 {[%clk 0:00:05.8]} 44. Qg4 {[%clk
0:00:01.5]} 44... Qxd6+ {[%clk 0:00:05.6]} 45. Kg1 {[%clk 0:00:01.3]} 45... Qc5+
{[%clk 0:00:05.9]} 46. Kh2 {[%clk 0:00:01.8]} 46... Qxc3 {[%clk 0:00:06.3]} 47.
Qf4+ {[%clk 0:00:02.4]} 47... Ke7 {[%clk 0:00:06.2]} 48. Qb8 {[%clk 0:00:01.4]}
48... Qc6 {[%clk 0:00:06]} 49. Qg3 {[%clk 0:00:01.4]} 49... Qd6 {[%clk
0:00:05.8]} 0-1